fUSD/lending_fUSD_20260512
["ID","MTS","AMOUNT","RATE_DAILY","PERIOD"]
[422087403,1778561449000,-3989.38,0.000401,120]
[422087401,1778561449000,-25000.0,0.00040088,15]
[422087396,1778561449000,-5027.373871,0.0004,20]
[422087397,1778561449000,-5027.373871,0.0004,20]
[422087393,1778561449000,-347.517931,0.0004,30]
[422087400,1778561449000,-2987.6011,0.00040084,30]
[422087404,1778561449000,-19234.67559057,0.00040132,15]
[422087394,1778561449000,-5027.373871,0.0004,20]
[422087417,1778561449000,-228.95808045,0.00040445,2]
[422087407,1778561449000,-2698.1375,0.00040269,2]
[422087416,1778561449000,-3989.38,0.00040425,120]
[422087410,1778561449000,-2922.29,0.000403,14]
[422087412,1778561449000,-195.6175,0.00040314,13]
[422087409,1778561449000,-193.03,0.000403,17]
[422087411,1778561449000,-500.54726343,0.0004031,30]
[422087418,1778561449000,-152.0,0.00040469,30]
[422087406,1778561449000,-6002.44267792,0.00040173,12]
[422087414,1778561449000,-22500.0,0.00040375,120]
[422087413,1778561449000,-246.469525,0.00040375,30]
[422087408,1778561449000,-1562.0,0.00040274,30]
[422087395,1778561449000,-5027.373871,0.0004,20]
[422087402,1778561449000,-25000.0,0.00040097,15]
[422087392,1778561449000,-347.517931,0.0004,30]
[422087373,1778561449000,-151.0,0.0004,30]
[422087390,1778561449000,-347.517931,0.0004,30]
[422087415,1778561449000,-1483.54939322,0.00040379,120]
[422087364,1778561449000,-127700.0,0.0004,14]
[422087366,1778561449000,-1136.281255,0.0004,28]
[422087367,1778561449000,-1136.281255,0.0004,28]
[422087365,1778561449000,-1136.281255,0.0004,28]
[422087369,1778561449000,-151.0,0.0004,30]
[422087368,1778561449000,-1136.281255,0.0004,28]
[422087376,1778561449000,-500.0,0.0004,120]
[422087377,1778561449000,-500.0,0.0004,120]
[422087378,1778561449000,-500.0,0.0004,120]
[422087371,1778561449000,-151.0,0.0004,30]
[422087372,1778561449000,-151.0,0.0004,30]
[422087375,1778561449000,-151.0,0.0004,30]
[422087370,1778561449000,-1733.2875692,0.0004,30]
[422087374,1778561449000,-229.754449,0.0004,30]
[422087379,1778561449000,-500.0,0.0004,120]
[422087381,1778561449000,-500.0,0.0004,120]
[422087383,1778561449000,-500.0,0.0004,120]
[422087382,1778561449000,-500.0,0.0004,120]
[422087391,1778561449000,-347.517931,0.0004,30]
[422087387,1778561449000,-500.0,0.0004,120]
[422087384,1778561449000,-500.0,0.0004,120]
[422087386,1778561449000,-500.0,0.0004,120]
[422087385,1778561449000,-500.0,0.0004,120]
[422087388,1778561449000,-218.15135435,0.0004,120]
[422087389,1778561449000,-151.0,0.0004,30]
[422087419,1778561449000,-12404.93,0.000405,120]
[422087380,1778561449000,-500.0,0.0004,120]
[422087422,1778561449000,-1000.0,0.000405,14]
[422087452,1778561449000,-1000.0,0.000406,14]
[422087451,1778561449000,-161.0,0.000406,120]
[422087454,1778561449000,-178.99855138,0.00040637,120]
[422087453,1778561449000,-557.21123289,0.00040623,2]
[422087474,1778561449000,-269.189159,0.00040676,30]
[422087456,1778561449000,-289.63334435,0.00040666,7]
[422087462,1778561449000,-1186374.6180271,0.00040676,2]
[422087455,1778561449000,-1444.0,0.00040658,120]
[422087458,1778561449000,-500.0,0.00040673,5]
[422087460,1778561449000,-286.29073943,0.00040673,120]
[422087459,1778561449000,-151.0,0.00040673,14]
[422087457,1778561449000,-11186.885688,0.0004067,2]
[422087463,1778561449000,-21987.073686,0.00040676,2]
[422087461,1778561449000,-409082.96982311,0.00040676,48]
[422087464,1778561449000,-4357.3267207,0.00040676,2]
[422087465,1778561449000,-1171.7475387,0.00040676,2]
[422087466,1778561449000,-151.0,0.00040676,30]
[422087469,1778561449000,-1136.281255,0.00040676,28]
[422087468,1778561449000,-1136.281255,0.00040676,28]
[422087467,1778561449000,-151.0,0.00040676,30]
[422087470,1778561449000,-1136.281255,0.00040676,28]
[422087471,1778561449000,-1136.281255,0.00040676,28]
[422087472,1778561449000,-269.189159,0.00040676,30]
[422087473,1778561449000,-269.189159,0.00040676,30]
[422087475,1778561449000,-151.000007,0.00040676,30]
[422087450,1778561449000,-177.88263,0.0004059,120]
[422087449,1778561449000,-177.88262,0.0004059,120]
[422087421,1778561449000,-33871.5060622,0.000405,120]
[422087445,1778561449000,-151.0,0.0004059,30]
[422087424,1778561449000,-5027.373871,0.000405,20]
[422087420,1778561449000,-732.62596944,0.000405,120]
[422087423,1778561449000,-5027.373871,0.000405,20]
[422087428,1778561449000,-654.400014,0.000405,7]
[422087429,1778561449000,-654.400014,0.000405,7]
[422087430,1778561449000,-654.400014,0.000405,7]
[422087427,1778561449000,-144834.56376963,0.000405,30]
[422087425,1778561449000,-5027.373871,0.000405,20]
[422087426,1778561449000,-5027.373871,0.000405,20]
[422087432,1778561449000,-151.0,0.000405,30]
[422087431,1778561449000,-654.400014,0.000405,7]
[422087434,1778561449000,-219.362548,0.000405,30]
[422087448,1778561449000,-177.88262,0.0004059,120]
[422087438,1778561449000,-197.0,0.00040533,10]
[422087444,1778561449000,-151.0,0.0004059,30]
[422087447,1778561449000,-177.88262,0.0004059,120]
[422087446,1778561449000,-177.88262,0.0004059,120]
[422087441,1778561449000,-254.52,0.00040575,10]
[422087442,1778561449000,-1000.0,0.00040582,120]
[422087443,1778561449000,-22593.93511509,0.0004059,2]
[422087439,1778561449000,-1562.0,0.00040548,30]
[422087436,1778561449000,-151.0,0.000405,30]
[422087433,1778561449000,-151.0,0.000405,30]
[422087435,1778561449000,-151.0,0.000405,30]
[422087437,1778561449000,-6002.44267792,0.00040529,12]
[422087440,1778561449000,-271.94,0.00040575,10]
[422087518,1778561450000,-189.55,0.0004075,120]
[422087515,1778561450000,-2778.80355088,0.00040713,7]
[422087513,1778561450000,-3822.63757246,0.00040713,7]
[422087511,1778561450000,-3822.63757246,0.00040713,7]
[422087506,1778561450000,-3822.63757246,0.00040713,7]
[422087512,1778561450000,-3822.63757246,0.00040713,7]
[422087508,1778561450000,-3822.63757246,0.00040713,7]
[422087510,1778561450000,-3822.63757246,0.00040713,7]
[422087509,1778561450000,-3822.63757246,0.00040713,7]
[422087517,1778561450000,-324.45,0.0004075,120]
[422087507,1778561450000,-3822.63757246,0.00040713,7]
[422087514,1778561450000,-3822.63757246,0.00040713,7]
[422087532,1778561450000,-566.82,0.00040989,120]
[422087523,1778561450000,-633.25538379,0.00040822,5]
[422087519,1778561450000,-22500.0,0.0004075,120]
[422087516,1778561450000,-3989.38,0.0004075,120]
[422087522,1778561450000,-1562.0,0.00040822,30]
[422087524,1778561450000,-184.76,0.00040841,120]
[422087528,1778561450000,-268.7,0.0004094,120]
[422087525,1778561450000,-992.0,0.00040875,5]
[422087526,1778561450000,-791.0,0.00040875,5]
[422087529,1778561450000,-278097.0,0.0004095,60]
[422087527,1778561450000,-3516.17773268,0.00040902,10]
[422087530,1778561450000,-2790.27,0.00040951,2]
[422087503,1778561450000,-3822.63757246,0.00040713,7]
[422087520,1778561450000,-165.30545502,0.00040787,2]
[422087505,1778561450000,-3822.63757246,0.00040713,7]
[422087489,1778561450000,-654.400014,0.00040676,7]
[422087502,1778561450000,-3822.63757246,0.00040713,7]
[422087477,1778561450000,-151.0,0.00040676,30]
[422087476,1778561450000,-269.189159,0.00040676,30]
[422087480,1778561450000,-151.0,0.00040676,30]
[422087478,1778561450000,-151.0,0.00040676,30]
[422087479,1778561450000,-151.0,0.00040676,30]
[422087481,1778561450000,-347.517931,0.00040676,30]
[422087483,1778561450000,-347.517931,0.00040676,30]
[422087485,1778561450000,-5027.373871,0.00040676,20]
[422087482,1778561450000,-347.517931,0.00040676,30]
[422087484,1778561450000,-347.517931,0.00040676,30]
[422087487,1778561450000,-5027.373871,0.00040676,20]
[422087486,1778561450000,-5027.373871,0.00040676,20]
[422087504,1778561450000,-3822.63757246,0.00040713,7]
[422087488,1778561450000,-5027.373871,0.00040676,20]
[422087534,1778561450000,-177.88262,0.00040997,120]
[422087491,1778561450000,-654.400014,0.00040676,7]
[422087492,1778561450000,-654.400014,0.00040676,7]
[422087493,1778561450000,-151.0,0.00040676,30]
[422087496,1778561450000,-151.0,0.00040676,30]
[422087497,1778561450000,-166.0,0.00040679,11]
[422087494,1778561450000,-151.0,0.00040676,30]
[422087495,1778561450000,-151.0,0.00040676,30]
[422087498,1778561450000,-165.30545502,0.00040693,2]
[422087501,1778561450000,-213.9,0.000407,120]
[422087499,1778561450000,-177.08,0.000407,30]
[422087500,1778561450000,-1000.0,0.000407,14]
[422087490,1778561450000,-654.400014,0.00040676,7]
[422087533,1778561450000,-614.07880195,0.0004099,20]
[422087521,1778561450000,-1900.0,0.000408,14]
[422087536,1778561450000,-151.0,0.00040999,30]
[422087565,1778561450000,-500.0,0.00040999,30]
[422087568,1778561450000,-525.87575945,0.00040999,30]
[422087570,1778561450000,-59346.70832284,0.00041,30]
[422087569,1778561450000,-1798.80895522,0.00040999,30]
[422087572,1778561450000,-3000.0,0.00041,120]
[422087566,1778561450000,-500.0,0.00040999,30]
[422087573,1778561450000,-3000.0,0.00041,120]
[422087567,1778561450000,-500.0,0.00040999,30]
[422087575,1778561450000,-167.74053321,0.00041,30]
[422087574,1778561450000,-1197.74934017,0.00041,120]
[422087583,1778561450000,-151.0,0.00041,30]
[422087576,1778561450000,-5064.73009173,0.00041,120]
[422087571,1778561450000,-3000.0,0.00041,120]
[422087579,1778561450000,-423.91373241,0.00041,120]
[422087580,1778561450000,-157.5714128,0.00041,30]
[422087582,1778561450000,-19011.1608719,0.00041,30]
[422087585,1778561450000,-411048.81605316,0.00041,30]
[422087581,1778561450000,-7854.01291655,0.00041,120]
[422087578,1778561450000,-50798.26577506,0.00041,90]
[422087587,1778561450000,-500.0,0.00041,120]
[422087586,1778561450000,-200.0,0.00041,7]
[422087588,1778561450000,-3000.0,0.00041,120]
[422087591,1778561450000,-152.0,0.00041031,30]
[422087590,1778561450000,-1000.0,0.00041,30]
[422087589,1778561450000,-309.0,0.00041,30]
[422087531,1778561450000,-661.29,0.00040989,120]
[422087584,1778561450000,-424.51356207,0.00041,30]
[422087564,1778561450000,-500.0,0.00040999,30]
[422087577,1778561450000,-248.91363602,0.00041,30]
[422087562,1778561450000,-500.0,0.00040999,30]
[422087545,1778561450000,-532.08476084,0.00040999,30]
[422087563,1778561450000,-500.0,0.00040999,30]
[422087544,1778561450000,-151.0,0.00040999,30]
[422087547,1778561450000,-151.0,0.00040999,30]
[422087535,1778561450000,-500.0,0.00040999,30]
[422087540,1778561450000,-500.0,0.00040999,30]
[422087538,1778561450000,-1030.0,0.00040999,30]
[422087537,1778561450000,-500.0,0.00040999,30]
[422087542,1778561450000,-151.0,0.00040999,30]
[422087541,1778561450000,-326.70069033,0.00040999,30]
[422087539,1778561450000,-151.0,0.00040999,30]
[422087543,1778561450000,-500.0,0.00040999,30]
[422087548,1778561450000,-152.0,0.00040999,30]
[422087551,1778561450000,-151.0,0.00040999,30]
[422087546,1778561450000,-151.0,0.00040999,30]
[422087552,1778561450000,-500.0,0.00040999,30]
[422087560,1778561450000,-159.49748449,0.00040999,30]
[422087549,1778561450000,-156.02794494,0.00040999,30]
[422087558,1778561450000,-151.0,0.00040999,30]
[422087557,1778561450000,-500.0,0.00040999,30]
[422087559,1778561450000,-500.0,0.00040999,30]
[422087561,1778561450000,-500.0,0.00040999,30]
[422087556,1778561450000,-151.0,0.00040999,30]
[422087554,1778561450000,-151.0,0.00040999,30]
[422087553,1778561450000,-500.0,0.00040999,30]
[422087550,1778561450000,-500.0,0.00040999,30]
[422087555,1778561450000,-500.0,0.00040999,30]
[422087630,1778561451000,-151.0,0.00041096,120]
[422087628,1778561451000,-151.0,0.00041096,120]
[422087631,1778561451000,-292.846108,0.00041096,120]
[422087627,1778561451000,-151.0,0.00041096,120]
[422087634,1778561451000,-265.809036,0.00041096,120]
[422087633,1778561451000,-151.0,0.00041096,120]
[422087625,1778561451000,-151.0,0.00041096,7]
[422087624,1778561451000,-151.0,0.00041096,7]
[422087632,1778561451000,-151.0,0.00041096,120]
[422087636,1778561451000,-310.124374,0.00041096,120]
[422087623,1778561451000,-151.0,0.00041096,7]
[422087626,1778561451000,-151.0,0.00041096,7]
[422087635,1778561451000,-152.696414,0.00041096,120]
[422087642,1778561451000,-310.124374,0.00041096,120]
[422087637,1778561451000,-310.124374,0.00041096,120]
[422087640,1778561451000,-310.124374,0.00041096,120]
[422087641,1778561451000,-310.124374,0.00041096,120]
[422087639,1778561451000,-310.124374,0.00041096,120]
[422087648,1778561451000,-249.865869,0.00041096,120]
[422087644,1778561451000,-151.0,0.00041096,120]
[422087643,1778561451000,-310.124374,0.00041096,120]
[422087645,1778561451000,-151.0,0.00041096,120]
[422087646,1778561451000,-170.501813,0.00041096,120]
[422087647,1778561451000,-175.076766,0.00041096,120]
[422087650,1778561451000,-156.766326,0.00041096,120]
[422087619,1778561451000,-151.0,0.00041096,120]
[422087638,1778561451000,-310.124374,0.00041096,120]
[422087614,1778561451000,-151.0,0.00041096,120]
[422087592,1778561451000,-1448.6,0.00041041,120]
[422087617,1778561451000,-151.0,0.00041096,120]
[422087649,1778561451000,-176.930175,0.00041096,120]
[422087593,1778561451000,-7696.0,0.00041068,120]
[422087596,1778561451000,-10000.0,0.00041081,2]
[422087595,1778561451000,-3989.38,0.00041075,120]
[422087594,1778561451000,-165.11300457,0.00041074,2]
[422087598,1778561451000,-151.0,0.00041083,30]
[422087597,1778561451000,-152.0,0.00041083,30]
[422087603,1778561451000,-193.0,0.00041096,60]
[422087606,1778561451000,-164.540063,0.00041096,120]
[422087608,1778561451000,-151.0,0.00041096,120]
[422087607,1778561451000,-166.00706,0.00041096,120]
[422087610,1778561451000,-151.0,0.00041096,120]
[422087599,1778561451000,-151.0,0.00041083,30]
[422087604,1778561451000,-484.0,0.00041096,120]
[422087600,1778561451000,-2536.39,0.00041089,2]
[422087601,1778561451000,-185.20389468,0.00041095,30]
[422087602,1778561451000,-1562.0,0.00041096,120]
[422087605,1778561451000,-151.0,0.00041096,120]
[422087609,1778561451000,-173.920437,0.00041096,120]
[422087612,1778561451000,-151.0,0.00041096,120]
[422087621,1778561451000,-151.0,0.00041096,7]
[422087622,1778561451000,-151.0,0.00041096,7]
[422087620,1778561451000,-151.0,0.00041096,120]
[422087611,1778561451000,-293.273268,0.00041096,120]
[422087616,1778561451000,-156.815486,0.00041096,120]
[422087618,1778561451000,-247.847447,0.00041096,120]
[422087615,1778561451000,-296.074529,0.00041096,120]
[422087613,1778561451000,-179.960888,0.00041096,120]
[422087651,1778561451000,-188.43258,0.00041096,120]
[422087629,1778561451000,-151.0,0.00041096,120]
[422087653,1778561451000,-3175.820433,0.00041096,120]
[422087683,1778561451000,-1682.059491,0.00041096,120]
[422087685,1778561451000,-1682.059491,0.00041096,120]
[422087688,1778561451000,-151.0,0.00041096,120]
[422087686,1778561451000,-173.556983,0.00041096,120]
[422087687,1778561451000,-182.8389,0.00041096,120]
[422087690,1778561451000,-151.0,0.00041096,120]
[422087695,1778561451000,-401.355785,0.00041096,120]
[422087689,1778561451000,-151.0,0.00041096,120]
[422087694,1778561451000,-256.120684,0.00041096,120]
[422087691,1778561451000,-151.0,0.00041096,120]
[422087693,1778561451000,-151.0,0.00041096,120]
[422087692,1778561451000,-195.024865,0.00041096,120]
[422087707,1778561451000,-4976.925226,0.00041096,120]
[422087697,1778561451000,-205.141724,0.00041096,120]
[422087704,1778561451000,-4976.925226,0.00041096,120]
[422087698,1778561451000,-401.355785,0.00041096,120]
[422087703,1778561451000,-401.355785,0.00041096,120]
[422087702,1778561451000,-401.355785,0.00041096,120]
[422087705,1778561451000,-4976.925226,0.00041096,120]
[422087699,1778561451000,-401.355785,0.00041096,120]
[422087700,1778561451000,-401.355785,0.00041096,120]
[422087708,1778561451000,-4976.925226,0.00041096,120]
[422087701,1778561451000,-401.355785,0.00041096,120]
[422087706,1778561451000,-4976.925226,0.00041096,120]
[422087709,1778561451000,-4976.925226,0.00041096,120]
[422087710,1778561451000,-155.824373,0.00041096,120]
[422087652,1778561451000,-180.900285,0.00041096,120]
[422087684,1778561451000,-1682.059491,0.00041096,120]
[422087682,1778561451000,-1682.059491,0.00041096,120]
[422087696,1778561451000,-401.355785,0.00041096,120]
[422087681,1778561451000,-1682.059491,0.00041096,120]
[422087680,1778561451000,-1682.059491,0.00041096,120]
[422087656,1778561451000,-3175.820433,0.00041096,120]
[422087654,1778561451000,-3175.820433,0.00041096,120]
[422087658,1778561451000,-3175.820433,0.00041096,120]
[422087659,1778561451000,-3175.820433,0.00041096,120]
[422087657,1778561451000,-3175.820433,0.00041096,120]
[422087660,1778561451000,-3175.820433,0.00041096,120]
[422087661,1778561451000,-151.0,0.00041096,120]
[422087663,1778561451000,-251.877461,0.00041096,120]
[422087662,1778561451000,-151.0,0.00041096,120]
[422087672,1778561451000,-334.558121,0.00041096,14]
[422087671,1778561451000,-334.558121,0.00041096,14]
[422087664,1778561451000,-151.0,0.00041096,120]
[422087666,1778561451000,-260.00872,0.00041096,120]
[422087655,1778561451000,-3175.820433,0.00041096,120]
[422087679,1778561451000,-1682.059491,0.00041096,120]
[422087668,1778561451000,-151.0,0.00041096,120]
[422087674,1778561451000,-334.558121,0.00041096,14]
[422087678,1778561451000,-1682.059491,0.00041096,120]
[422087677,1778561451000,-334.558121,0.00041096,14]
[422087673,1778561451000,-334.558121,0.00041096,14]
[422087676,1778561451000,-334.558121,0.00041096,14]
[422087669,1778561451000,-151.0,0.00041096,120]
[422087665,1778561451000,-151.0,0.00041096,120]
[422087711,1778561451000,-4976.925226,0.00041096,120]
[422087670,1778561451000,-334.558121,0.00041096,14]
[422087667,1778561451000,-151.0,0.00041096,120]
[422087675,1778561451000,-334.558121,0.00041096,14]
[422087752,1778561452000,-3510.598437,0.00041096,120]
[422087753,1778561452000,-3510.598437,0.00041096,120]
[422087751,1778561452000,-319.65253,0.00041096,120]
[422087749,1778561452000,-319.65253,0.00041096,120]
[422087750,1778561452000,-319.65253,0.00041096,120]
[422087737,1778561452000,-747.688823,0.00041096,120]
[422087745,1778561452000,-319.65253,0.00041096,120]
[422087755,1778561452000,-163.20365,0.00041096,120]
[422087747,1778561452000,-319.65253,0.00041096,120]
[422087754,1778561452000,-151.0,0.00041096,120]
[422087748,1778561452000,-319.65253,0.00041096,120]
[422087746,1778561452000,-319.65253,0.00041096,120]
[422087756,1778561452000,-3510.598437,0.00041096,120]
[422087757,1778561452000,-3510.598437,0.00041096,120]
[422087762,1778561452000,-3510.598437,0.00041096,120]
[422087765,1778561452000,-165.344479,0.00041096,120]
[422087767,1778561452000,-151.0,0.00041096,120]
[422087769,1778561452000,-151.0,0.00041096,120]
[422087758,1778561452000,-3510.598437,0.00041096,120]
[422087768,1778561452000,-323.904121,0.00041096,120]
[422087761,1778561452000,-3510.598437,0.00041096,120]
[422087760,1778561452000,-218.388227,0.00041096,120]
[422087763,1778561452000,-214.93337,0.00041096,120]
[422087766,1778561452000,-1257.887749,0.00041096,30]
[422087759,1778561452000,-3510.598437,0.00041096,120]
[422087770,1778561452000,-323.904121,0.00041096,120]
[422087772,1778561452000,-151.0,0.00041096,120]
[422087771,1778561452000,-1257.887749,0.00041096,30]
[422087764,1778561452000,-1257.887749,0.00041096,30]
[422087740,1778561452000,-319.65253,0.00041096,120]
[422087721,1778561452000,-402.845025,0.00041096,7]
[422087738,1778561452000,-747.688823,0.00041096,120]
[422087718,1778561452000,-402.845025,0.00041096,7]
[422087720,1778561452000,-402.845025,0.00041096,7]
[422087719,1778561452000,-402.845025,0.00041096,7]
[422087717,1778561452000,-402.845025,0.00041096,7]
[422087714,1778561452000,-151.0,0.00041096,120]
[422087713,1778561452000,-151.0,0.00041096,120]
[422087712,1778561452000,-4976.925226,0.00041096,120]
[422087716,1778561452000,-402.845025,0.00041096,7]
[422087715,1778561452000,-168.280279,0.00041096,120]
[422087722,1778561452000,-402.845025,0.00041096,7]
[422087724,1778561452000,-402.845025,0.00041096,7]
[422087726,1778561452000,-402.845025,0.00041096,7]
[422087725,1778561452000,-402.845025,0.00041096,7]
[422087739,1778561452000,-747.688823,0.00041096,120]
[422087727,1778561452000,-402.845025,0.00041096,7]
[422087723,1778561452000,-402.845025,0.00041096,7]
[422087728,1778561452000,-747.688823,0.00041096,120]
[422087730,1778561452000,-747.688823,0.00041096,120]
[422087732,1778561452000,-747.688823,0.00041096,120]
[422087731,1778561452000,-747.688823,0.00041096,120]
[422087733,1778561452000,-747.688823,0.00041096,120]
[422087742,1778561452000,-319.65253,0.00041096,120]
[422087741,1778561452000,-319.65253,0.00041096,120]
[422087743,1778561452000,-319.65253,0.00041096,120]
[422087744,1778561452000,-319.65253,0.00041096,120]
[422087736,1778561452000,-747.688823,0.00041096,120]
[422087734,1778561452000,-747.688823,0.00041096,120]
[422087735,1778561452000,-747.688823,0.00041096,120]
[422087729,1778561452000,-747.688823,0.00041096,120]
[422087774,1778561452000,-1257.887749,0.00041096,30]
[422087776,1778561452000,-151.0,0.00041096,120]
[422087775,1778561452000,-323.904121,0.00041096,120]
[422087806,1778561452000,-334.558121,0.00041096,14]
[422087812,1778561452000,-1682.059491,0.00041096,120]
[422087810,1778561452000,-1682.059491,0.00041096,120]
[422087811,1778561452000,-1682.059491,0.00041096,120]
[422087818,1778561452000,-151.0,0.00041096,120]
[422087817,1778561452000,-269.189159,0.00041096,120]
[422087816,1778561452000,-269.189159,0.00041096,120]
[422087814,1778561452000,-269.189159,0.00041096,120]
[422087813,1778561452000,-1682.059491,0.00041096,120]
[422087815,1778561452000,-269.189159,0.00041096,120]
[422087820,1778561452000,-151.0,0.00041096,120]
[422087819,1778561452000,-151.0,0.00041096,120]
[422087822,1778561452000,-151.0,0.00041096,120]
[422087802,1778561452000,-3175.820433,0.00041096,120]
[422087821,1778561452000,-151.0,0.00041096,120]
[422087825,1778561452000,-401.355785,0.00041096,120]
[422087827,1778561452000,-4976.925226,0.00041096,120]
[422087826,1778561452000,-401.355785,0.00041096,120]
[422087828,1778561452000,-4976.925226,0.00041096,120]
[422087832,1778561452000,-167.669766,0.00041096,120]
[422087829,1778561452000,-4976.925226,0.00041096,120]
[422087824,1778561452000,-401.355785,0.00041096,120]
[422087830,1778561452000,-4976.925226,0.00041096,120]
[422087831,1778561452000,-151.0,0.00041096,120]
[422087833,1778561452000,-347.517931,0.00041096,120]
[422087773,1778561452000,-166.191604,0.00041096,120]
[422087835,1778561452000,-402.845025,0.00041096,7]
[422087836,1778561452000,-402.845025,0.00041096,7]
[422087823,1778561452000,-401.355785,0.00041096,120]
[422087801,1778561452000,-3175.820433,0.00041096,120]
[422087834,1778561452000,-347.517931,0.00041096,120]
[422087800,1778561452000,-3175.820433,0.00041096,120]
[422087803,1778561452000,-151.0,0.00041096,120]
[422087778,1778561452000,-1257.887749,0.00041096,30]
[422087779,1778561452000,-151.0,0.00041096,120]
[422087782,1778561452000,-167.88920771,0.00041096,60]
[422087780,1778561452000,-1257.887749,0.00041096,30]
[422087781,1778561452000,-167.88917837,0.00041096,120]
[422087785,1778561452000,-151.0,0.00041096,7]
[422087783,1778561452000,-182.824067,0.00041096,120]
[422087784,1778561452000,-151.0,0.00041096,7]
[422087790,1778561452000,-151.0,0.00041096,120]
[422087795,1778561452000,-1136.281255,0.00041096,28]
[422087791,1778561452000,-310.124374,0.00041096,120]
[422087792,1778561452000,-310.124374,0.00041096,120]
[422087787,1778561452000,-151.0,0.00041096,120]
[422087777,1778561452000,-323.904121,0.00041096,120]
[422087786,1778561452000,-151.0,0.00041096,7]
[422087794,1778561452000,-310.124374,0.00041096,120]
[422087798,1778561452000,-1136.281255,0.00041096,28]
[422087799,1778561452000,-3175.820433,0.00041096,120]
[422087804,1778561452000,-151.0,0.00041096,120]
[422087796,1778561452000,-1136.281255,0.00041096,28]
[422087807,1778561452000,-334.558121,0.00041096,14]
[422087805,1778561452000,-151.0,0.00041096,120]
[422087808,1778561452000,-334.558121,0.00041096,14]
[422087797,1778561452000,-1136.281255,0.00041096,28]
[422087788,1778561452000,-153.54189,0.00041096,120]
[422087789,1778561452000,-193.85052234,0.00041096,120]
[422087793,1778561452000,-310.124374,0.00041096,120]
[422087809,1778561452000,-334.558121,0.00041096,14]
[422087872,1778561453000,-341.8816,0.000411,60]
[422087876,1778561453000,-161.0,0.000411,120]
[422087874,1778561453000,-283.01,0.000411,120]
[422087875,1778561453000,-150.0,0.000411,39]
[422087869,1778561453000,-323.904121,0.00041096,120]
[422087873,1778561453000,-562.19,0.000411,120]
[422087880,1778561453000,-227.60169482,0.000411,120]
[422087870,1778561453000,-1257.887749,0.00041096,30]
[422087868,1778561453000,-171.81453,0.00041096,120]
[422087878,1778561453000,-227.60169482,0.000411,120]
[422087871,1778561453000,-386.79472483,0.00041099,2]
[422087866,1778561453000,-151.0,0.00041096,120]
[422087882,1778561453000,-227.60169482,0.000411,120]
[422087879,1778561453000,-227.60169482,0.000411,120]
[422087883,1778561453000,-227.60169482,0.000411,120]
[422087884,1778561453000,-227.60169482,0.000411,120]
[422087881,1778561453000,-227.60169482,0.000411,120]
[422087886,1778561453000,-227.60169482,0.000411,120]
[422087885,1778561453000,-227.60169482,0.000411,120]
[422087888,1778561453000,-227.60169482,0.000411,120]
[422087887,1778561453000,-227.60169482,0.000411,120]
[422087890,1778561453000,-227.60169482,0.000411,120]
[422087889,1778561453000,-227.60169482,0.000411,120]
[422087891,1778561453000,-227.60169482,0.000411,120]
[422087867,1778561453000,-1257.887749,0.00041096,30]
[422087877,1778561453000,-500.0,0.000411,30]
[422087865,1778561453000,-323.904121,0.00041096,120]
[422087850,1778561453000,-319.65253,0.00041096,120]
[422087863,1778561453000,-1257.887749,0.00041096,30]
[422087893,1778561453000,-227.60169482,0.000411,120]